bitfinex/quotes_BTCUSD_20250522
["timestamp","ask_amount","ask_price","bid_price","bid_amount"]
[1747875947061,11.81915358,110460.0,110450.0,0.42103188]
[1747875947275,11.81915358,110460.0,110450.0,0.38807189]
[1747875947486,1.81915358,110460.0,110450.0,0.38807189]
[1747875947946,1.65680354,110460.0,110450.0,0.38807189]
[1747875948156,1.25424816,110460.0,110450.0,0.38807189]
[1747875948357,0.63750339,110460.0,110450.0,0.38807189]
[1747875948573,1.38838339,110460.0,110450.0,0.38807189]
[1747875950005,1.24505003,110460.0,110450.0,0.37577189]
[1747875950445,1.58505003,110460.0,110450.0,0.35687189]
[1747875950629,1.6790836,110460.0,110450.0,0.35687189]
[1747875950800,11.6790836,110460.0,110450.0,0.34917189]
[1747875951013,11.6790836,110460.0,110450.0,0.30390287]
[1747875951216,1.58513003,110460.0,110450.0,0.29672812]
[1747875951755,1.52951457,110460.0,110450.0,0.29672812]
[1747875951953,1.55775698,110460.0,110450.0,0.29672812]
[1747875952553,1.55775698,110460.0,110450.0,0.28987812]
[1747875953117,1.55775698,110460.0,110450.0,0.09533168]
[1747875953325,0.56083055,110460.0,110450.0,0.09533168]
[1747875953542,0.92554448,110460.0,110450.0,0.12583168]
[1747875953750,0.92554448,110460.0,110450.0,0.09533168]
[1747875953978,0.92554448,110460.0,110450.0,0.45747168]
[1747875954337,1.21779698,110460.0,110450.0,0.45747168]
[1747875954540,11.65183055,110460.0,110450.0,0.45747168]
[1747875955708,11.26554448,110460.0,110450.0,0.45747168]
[1747875955927,1.55779698,110460.0,110450.0,0.45747168]
[1747875956162,0.17454448,110460.0,110450.0,0.45747168]
[1747875956357,0.92558448,110460.0,110450.0,0.49037168]
[1747875956562,1.01961805,110460.0,110450.0,0.49037168]
[1747875957454,0.74801805,110460.0,110450.0,0.49037168]
[1747875957648,0.92562448,110460.0,110450.0,0.52177168]
[1747875958073,0.63944363,110460.0,110450.0,0.52177168]
[1747875958269,0.91112363,110460.0,110450.0,0.52177168]
[1747875958877,1.21791698,110460.0,110450.0,0.45747168]
[1747875959471,0.92566448,110460.0,110450.0,0.45747168]
[1747875959666,1.01969805,110460.0,110450.0,0.45747168]
[1747875959866,1.31195055,110460.0,110450.0,0.45747168]
[1747875960401,11.04031055,110460.0,110450.0,0.45747168]
[1747875960611,1.31195055,110460.0,110450.0,0.45747168]
[1747875962280,0.67929421,110460.0,110450.0,0.52117168]
[1747875962500,0.95093421,110460.0,110450.0,0.52117168]
[1747875963403,0.67929421,110460.0,110450.0,0.52117168]
[1747875963610,0.47547868,110460.0,110450.0,0.7294097]
[1747875963842,0.01981088,110480.0,110470.0,0.20820031]
[1747875964054,0.57151362,110480.0,110470.0,0.27390031]
[1747875964296,0.40529882,110490.0,110480.0,0.33388148]
[1747875964297,0.01433882,110490.0,110480.0,0.33388148]
[1747875964484,0.01433882,110490.0,110480.0,1.15531027]
[1747875964694,0.01433882,110490.0,110480.0,0.7690242]
[1747875964894,0.01433882,110490.0,110480.0,0.69594148]
[1747875965149,0.29878767,110500.0,110490.0,0.26946263]
[1747875965356,0.29816866,110500.0,110490.0,0.26946263]
[1747875965569,0.29816866,110500.0,110490.0,0.63148263]
[1747875965937,0.30721786,110500.0,110490.0,0.63148263]
[1747875966137,0.29816866,110500.0,110490.0,0.63148263]
[1747875966404,0.01747955,110500.0,110490.0,0.72059457]
[1747875966611,0.28911955,110500.0,110490.0,0.72059457]
[1747875966819,0.28911955,110500.0,110490.0,0.62243262]
[1747875966820,0.32531732,110500.0,110490.0,0.62243262]
[1747875967028,0.79187781,110500.0,110490.0,0.63148272]
[1747875967228,0.79187781,110500.0,110490.0,0.6314828]
[1747875967443,1.06690742,110500.0,110490.0,0.42332]
[1747875967652,1.03975902,110500.0,110490.0,0.36202]
[1747875967867,1.14833344,110500.0,110490.0,0.36202]
[1747875968282,1.13379259,110500.0,110490.0,0.36202]
[1747875968490,1.03975902,110500.0,110490.0,0.36202]
[1747875968704,1.0313285,110500.0,110490.0,0.36202]
[1747875969914,1.04586935,110500.0,110490.0,0.36202]
[1747875971159,1.0312885,110500.0,110490.0,0.36202]
[1747875971317,1.12532207,110500.0,110490.0,0.36202]
[1747875971793,1.0312885,110500.0,110490.0,0.36202]
[1747875971998,0.2931285,110500.0,110490.0,0.36202]
[1747875972199,1.0312485,110500.0,110490.0,0.36202]
[1747875973428,0.7596885,110500.0,110490.0,0.36202]
[1747875973741,0.01433882,110530.0,110520.0,0.0647]
[1747875973951,0.01433882,110530.0,110520.0,0.27280613]
[1747875973952,0.2997275,110530.0,110520.0,0.27280613]
[1747875974175,0.0281675,110530.0,110520.0,1.32347613]
[1747875974404,0.01433882,110530.0,110520.0,1.32347613]
[1747875974615,0.28589882,110530.0,110520.0,1.32347613]
[1747875974822,0.27156,110530.0,110520.0,1.32347613]
[1747875975035,0.04036017,110550.0,110540.0,0.26956848]
[1747875975249,0.05845029,110550.0,110540.0,0.26956848]
[1747875975484,0.32096511,110550.0,110540.0,1.26010848]
[1747875976144,0.90200511,110550.0,110540.0,1.26010848]
[1747875976561,0.92847925,110550.0,110540.0,1.26010848]
[1747875976991,1.10034833,110550.0,110540.0,1.05204]
[1747875977211,1.10034833,110550.0,110540.0,1.03028641]
[1747875977632,1.05998816,110550.0,110540.0,1.22026264]
[1747875977805,1.05998816,110550.0,110540.0,1.58210264]
[1747875978010,1.0600682,110550.0,110540.0,0.7544]
[1747875978256,1.0600682,110550.0,110540.0,0.4106529]
[1747875978466,1.05102293,110550.0,110540.0,0.76344649]
[1747875978642,1.05102293,110550.0,110540.0,0.7544]
[1747875978872,1.05102293,110550.0,110540.0,0.7237]
[1747875978873,1.04197742,110550.0,110540.0,0.7237]
[1747875979063,1.05651827,110550.0,110540.0,0.7237]
[1747875979283,1.40277587,110550.0,110540.0,0.7237]
[1747875979529,11.74277587,110550.0,110540.0,0.7237]
[1747875979931,11.39651827,110550.0,110540.0,0.7237]
[1747875980374,1.74277587,110550.0,110540.0,0.7237]
[1747875980595,11.80547587,110550.0,110540.0,0.71646567]
[1747875980815,11.80547587,110550.0,110540.0,0.70923134]
[1747875981029,0.51358124,110530.0,110520.0,0.0001244]
[1747875981239,0.19911245,110490.0,110480.0,0.0095752]
[1747875981461,1.53642602,110490.0,110480.0,0.04198219]
[1747875981672,1.36446476,110490.0,110480.0,0.241113]
[1747875981885,1.36446427,110490.0,110480.0,0.250164]
[1747875982147,1.37351461,110490.0,110480.0,0.612204]
[1747875982560,1.42475213,110490.0,110480.0,0.62125492]
[1747875982782,1.54972078,110490.0,110480.0,0.40402219]
[1747875983744,1.54972078,110490.0,110480.0,0.39444699]
[1747875983941,1.54972078,110490.0,110480.0,0.36254699]
[1747875984148,1.27828078,110490.0,110480.0,0.36254699]
[1747875984362,0.48491357,110490.0,110480.0,0.63142847]
[1747875984565,0.66232,110490.0,110480.0,0.63142847]
[1747875984736,0.67136993,110490.0,110480.0,0.63142847]
[1747875985176,1.25240985,110490.0,110480.0,0.63142847]
[1747875985377,1.4515228,110490.0,110480.0,0.61332656]
[1747875985628,1.63053984,110490.0,110480.0,0.42324699]
[1747875986033,0.77805984,110490.0,110480.0,0.42324699]
[1747875986240,1.63053984,110490.0,110480.0,0.42324699]
[1747875986442,1.63179627,110490.0,110480.0,0.62237788]
[1747875986622,1.53650627,110490.0,110480.0,0.64048012]
[1747875986824,1.52745593,110490.0,110480.0,0.62237797]
[1747875987025,1.51840542,110490.0,110480.0,0.62237797]
[1747875987243,1.51840542,110490.0,110480.0,0.98441797]
[1747875987437,1.51840542,110490.0,110480.0,0.78528699]
[1747875990764,1.82495444,110490.0,110480.0,0.71678699]
[1747875990989,7.21495444,110490.0,110480.0,0.70778445]
[1747875991206,7.21495444,110490.0,110480.0,0.66253156]
[1747875991416,7.60099618,110490.0,110480.0,0.60627867]
[1747875991632,7.60099618,110490.0,110480.0,0.54380422]
[1747875991844,7.30898801,110490.0,110480.0,0.49855133]
[1747875992010,7.30898801,110490.0,110480.0,0.40804555]
[1747875992252,7.30898801,110490.0,110480.0,0.35509266]
[1747875992882,7.60099618,110490.0,110480.0,0.35009266]
[1747875993257,7.60099618,110490.0,110480.0,0.30483977]
[1747875993258,7.30898801,110490.0,110480.0,0.30483977]
[1747875993491,7.30898801,110490.0,110480.0,0.25958688]
[1747875993700,7.30898801,110490.0,110480.0,0.21433399]
[1747875993926,7.60099618,110490.0,110480.0,0.16465052]
[1747875994156,0.19918457,110450.0,110440.0,0.0303]
[1747875994379,0.89477224,110450.0,110440.0,0.0303]
[1747875994600,0.20827549,110430.0,110420.0,0.22278241]
[1747875994841,1.13683911,110430.0,110420.0,0.03248274]
[1747875995041,1.13683911,110430.0,110420.0,0.03883898]
[1747875995259,1.13683911,110430.0,110420.0,0.07013907]
[1747875995475,1.13683911,110430.0,110420.0,0.07026407]
[1747875995907,1.23087268,110430.0,110420.0,0.42344774]
[1747875996117,1.13683911,110430.0,110420.0,0.42344774]
[1747875996332,0.96478343,110430.0,110420.0,0.6407985]
[1747875996564,0.21270334,110440.0,110430.0,0.23112088]
[1747875996787,1.15949691,110440.0,110430.0,0.0319]
[1747875997020,1.15044255,110440.0,110430.0,0.39412]
[1747875997219,1.15044255,110440.0,110430.0,0.58428562]
[1747875997436,1.14138795,110440.0,110430.0,0.39412]
[1747875998055,1.23542152,110440.0,110430.0,0.42642]
[1747875998483,1.14138795,110440.0,110430.0,0.42642]
[1747876000246,0.28862795,110440.0,110430.0,0.42642]
[1747876000590,1.14142795,110440.0,110430.0,0.42642]
[1747876003271,0.86986795,110440.0,110430.0,0.42642]
[1747876003445,1.14146795,110440.0,110430.0,0.42642]
[1747876003869,0.18107473,110460.0,110440.0,0.01810855]
[1747876004074,0.57961403,110440.0,110430.0,0.62143998]
[1747876004232,0.22647822,110440.0,110430.0,0.25921998]
[1747876004437,0.22647822,110440.0,110430.0,1.04591998]
[1747876004842,0.21742403,110440.0,110430.0,1.04591998]
[1747876005062,0.22647822,110440.0,110430.0,0.9678102]
[1747876005273,0.50160617,110440.0,110430.0,0.7867]
[1747876005686,0.50160617,110440.0,110430.0,0.76615534]
[1747876005891,0.49255189,110440.0,110430.0,0.7571]
[1747876006292,0.09403357,110440.0,110430.0,1.00703108]
[1747876006500,0.86026847,110440.0,110430.0,0.98642015]
[1747876006716,0.84216,110440.0,110430.0,0.98642015]
[1747876006944,0.19009652,110470.0,110460.0,0.07395296]
[1747876007160,1.13534174,110470.0,110460.0,0.98830685]
[1747876007385,1.1443938,110470.0,110460.0,0.98830685]
[1747876007600,1.13534215,110470.0,110460.0,0.97925397]
[1747876008006,1.11723819,110470.0,110460.0,0.78914]
[1747876008215,1.11723819,110470.0,110460.0,0.79831796]
[1747876008622,0.84563819,110470.0,110460.0,0.97937897]
[1747876008844,1.11723819,110470.0,110460.0,0.97937897]
[1747876009054,1.11723819,110470.0,110460.0,0.79831796]
[1747876009307,0.57056,110470.0,110460.0,1.00653704]
[1747876009530,0.86931512,110470.0,110460.0,1.06653704]
[1747876009724,0.86026322,110470.0,110460.0,1.06653704]
[1747876009947,0.86931504,110470.0,110460.0,1.06653704]
[1747876010154,0.00905149,110470.0,110460.0,1.06653704]
[1747876010358,0.03171653,110480.0,110470.0,0.27270031]
[1747876010532,0.89197828,110480.0,110470.0,0.27270031]
[1747876010786,1.18789207,110480.0,110470.0,0.78868]
[1747876010958,1.56752381,110480.0,110470.0,0.72418]
[1747876011518,1.29592381,110480.0,110470.0,0.72418]
[1747876011721,0.36559357,110480.0,110470.0,0.99748031]
[1747876011927,0.01339947,110500.0,110490.0,0.24561185]
[1747876012135,0.61116071,110510.0,110500.0,0.2727438]
[1747876012287,1.00014131,110510.0,110500.0,0.3327438]
[1747876012496,0.9910931,110510.0,110500.0,0.6947338]
[1747876012705,1.00856949,110510.0,110500.0,1.0567238]
[1747876012861,1.02666665,110510.0,110500.0,1.0476746]
[1747876013061,1.05104255,110510.0,110500.0,0.9967238]
[1747876013281,1.03571528,110510.0,110500.0,1.0567238]
[1747876013483,1.21720167,110510.0,110500.0,0.96957547]
[1747876013690,1.02188442,110510.0,110500.0,1.04767451]
[1747876013935,1.58660553,110510.0,110500.0,0.72398]
[1747876014150,6.99317743,110510.0,110500.0,0.60205191]
[1747876014358,6.99317743,110510.0,110500.0,0.55679124]
[1747876014359,2.012211,110510.0,110500.0,0.55679124]
[1747876014574,2.012211,110510.0,110500.0,0.51153057]
[1747876014788,2.012211,110510.0,110500.0,0.42100923]
[1747876014987,2.012211,110510.0,110500.0,0.37574856]
[1747876015202,7.062211,110510.0,110500.0,0.31896332]
[1747876015404,7.062211,110510.0,110500.0,0.31621189]
[1747876015822,1.740651,110510.0,110500.0,0.67818189]
[1747876016029,1.91813743,110510.0,110500.0,0.67818189]
[1747876016570,1.7911309,110510.0,110500.0,0.67818189]
[1747876017530,6.8411309,110510.0,110500.0,0.67018189]
[1747876018491,5.9990909,110510.0,110500.0,0.67018189]
[1747876018693,6.93508447,110510.0,110500.0,0.67018189]
[1747876020314,6.6430763,110510.0,110500.0,0.67018189]
[1747876020724,6.93508447,110510.0,110500.0,0.67018189]
[1747876021445,6.6430763,110510.0,110500.0,0.64896489]
[1747876021772,6.93508447,110510.0,110500.0,0.64896489]
[1747876022321,6.93508447,110510.0,110500.0,0.53858056]
[1747876022522,6.93508447,110510.0,110450.0,0.0632]
[1747876022523,0.21370738,110460.0,110450.0,0.0632]
[1747876022723,1.13518095,110460.0,110450.0,0.0632]
[1747876022858,0.09403357,110460.0,110450.0,0.33143786]
[1747876023051,0.82744,110460.0,110450.0,0.68512391]
[1747876023243,0.83649231,110460.0,110450.0,0.68512391]
[1747876023865,0.84554478,110460.0,110450.0,0.68524891]
[1747876024786,0.84554478,110460.0,110450.0,0.426065]
[1747876024787,1.21467367,110460.0,110450.0,0.426065]
[1747876025000,1.42718912,110460.0,110450.0,0.426065]
[1747876025217,1.42718912,110460.0,110450.0,0.362265]
[1747876025425,1.76718912,110460.0,110450.0,0.362265]
[1747876025600,1.13518095,110460.0,110450.0,0.424965]
[1747876025840,1.22921452,110460.0,110450.0,0.424965]
[1747876026855,1.24276434,110460.0,110450.0,0.424965]
[1747876027055,0.97124434,110460.0,110450.0,0.424965]
[1747876027267,0.92151357,110460.0,110450.0,0.64225656]
[1747876027468,0.92151357,110460.0,110450.0,0.69320336]
[1747876027469,0.95772419,110460.0,110450.0,0.69320336]
[1747876027684,0.94867123,110460.0,110450.0,0.70225673]
[1747876027884,0.93961843,110460.0,110450.0,0.70225673]
[1747876028125,0.94867123,110460.0,110450.0,0.70225673]
[1747876028325,0.66805843,110460.0,110450.0,0.70225673]
[1747876028531,0.95772395,110460.0,110450.0,0.71131002]
[1747876028735,0.95772395,110460.0,110450.0,1.07345002]
[1747876028928,0.82748,110460.0,110450.0,1.08345002]
[1747876029391,0.4498719,110470.0,110460.0,0.32981916]
[1747876029593,0.71238,110470.0,110460.0,0.69193916]
[1747876029788,0.71238,110470.0,110460.0,1.05405916]
[1747876030054,0.72143198,110470.0,110460.0,1.05405916]
[1747876030264,0.03171653,110470.0,110460.0,1.4401009]
[1747876030468,0.01079459,110500.0,110490.0,0.33096288]
[1747876030469,0.00904903,110500.0,110490.0,0.33096288]
[1747876030672,0.59183608,110500.0,110490.0,0.1128]
[1747876030881,1.02381287,110500.0,110490.0,0.72404]
[1747876031088,1.37835372,110500.0,110490.0,0.72404]
[1747876031293,6.42835372,110500.0,110490.0,0.69577609]
[1747876031500,1.37835372,110500.0,110490.0,0.69577609]
[1747876031707,1.37886102,110500.0,110490.0,0.69577609]
[1747876032543,6.49684486,110500.0,110490.0,0.69577609]
[1747876032780,6.53004486,110500.0,110490.0,0.68943609]
[1747876033184,6.53004486,110500.0,110490.0,0.64177169]
[1747876033398,6.56144486,110500.0,110490.0,0.56185769]
[1747876033803,6.56498909,110500.0,110490.0,0.51660187]
[1747876034005,6.56498909,110500.0,110490.0,0.47134605]
[1747876034213,6.68871909,110500.0,110490.0,0.34990301]
[1747876034417,6.68871909,110500.0,110490.0,0.33319356]
[1747876034418,7.30210637,110500.0,110490.0,0.33319356]
[1747876034620,7.30210637,110500.0,110490.0,0.28793774]
[1747876034826,7.0100982,110500.0,110490.0,0.28793774]
[1747876035044,6.96890637,110500.0,110490.0,0.24268192]
[1747876035874,6.99890637,110500.0,110490.0,0.23600192]
[1747876036127,6.99890637,110500.0,110490.0,0.2242619]
[1747876036308,7.02890637,110500.0,110490.0,0.17900608]
[1747876036550,6.7368982,110500.0,110490.0,0.14174291]
[1747876036751,7.02890637,110500.0,110490.0,0.14174291]
[1747876036883,7.02753695,110500.0,110490.0,0.09648709]
[1747876037498,7.02753695,110500.0,110490.0,0.06920352]
[1747876037705,7.02753695,110500.0,110490.0,0.0239477]
[1747876037909,7.31319813,110500.0,110490.0,0.0239477]
[1747876038098,0.02716258,110440.0,110430.0,0.35501113]
[1747876038480,0.59195924,110440.0,110430.0,0.1246]
[1747876038704,0.5738511,110440.0,110430.0,0.33287598]
[1747876039163,0.3927573,110440.0,110430.0,0.33287615]
[1747876039415,0.3927573,110440.0,110430.0,0.34234253]
[1747876039616,0.38370171,110440.0,110430.0,0.35139746]
[1747876039824,0.40181051,110440.0,110430.0,0.35139746]
[1747876040166,0.39275599,110440.0,110430.0,0.35139746]
[1747876040357,0.73178446,110450.0,110430.0,0.35139746]
[1747876040358,0.20823862,110450.0,110440.0,0.26310276]
[1747876040568,1.11547219,110450.0,110440.0,0.32310276]
[1747876040771,1.10641873,110450.0,110440.0,0.32310276]
[1747876041000,1.13756825,110450.0,110440.0,0.3140484]
[1747876041208,1.12851455,110450.0,110440.0,0.32310292]
[1747876041647,1.09736503,110450.0,110440.0,0.32310292]
[1747876041847,1.09736503,110450.0,110440.0,0.33215736]
[1747876042027,0.00905264,110460.0,110450.0,0.27727803]
[1747876042392,0.93439148,110460.0,110450.0,0.27727819]
[1747876042598,0.94344444,110460.0,110450.0,0.27727819]
[1747876042726,0.94344444,110460.0,110450.0,0.34217819]
[1747876042922,0.95249749,110460.0,110450.0,0.34217819]
[1747876043150,1.12450611,110460.0,110450.0,0.33312507]
[1747876043355,1.12450611,110460.0,110450.0,0.34217853]
[1747876043764,0.9434451,110460.0,110450.0,0.34217853]
[1747876044050,1.12450611,110460.0,110450.0,0.34217853]
[1747876044260,1.11545347,110460.0,110450.0,0.70431853]
[1747876045284,1.11545347,110460.0,110450.0,0.7133719]
[1747876045497,1.11545347,110460.0,110450.0,1.1543719]
[1747876046104,0.30225347,110460.0,110450.0,1.1543719]
[1747876046329,1.11545347,110460.0,110450.0,1.1543719]
[1747876046554,0.92533941,110460.0,110450.0,1.1543719]
[1747876046723,0.93439246,110460.0,110450.0,1.15437132]
[1747876046922,0.93439246,110460.0,110450.0,1.14531803]
[1747876047311,0.93439246,110460.0,110450.0,0.93909562]
[1747876047521,0.93439246,110460.0,110450.0,1.12015966]
[1747876047920,0.63567357,110460.0,110450.0,1.13826657]
[1747876048128,0.90723357,110460.0,110450.0,1.13826657]
[1747876048330,0.91628621,110460.0,110450.0,1.13826657]
[1747876048951,1.10640043,110460.0,110450.0,0.80314]
[1747876049552,1.12005208,110460.0,110450.0,0.80314]
[1747876050143,1.13459293,110460.0,110450.0,0.80314]
[1747876050705,1.4266011,110460.0,110450.0,0.80314]
[1747876050907,0.66743057,110460.0,110450.0,0.80314]
[1747876051087,0.09403357,110460.0,110450.0,1.07237802]
[1747876051300,0.28061247,110460.0,110450.0,1.11627327]
[1747876051874,0.58286536,110460.0,110450.0,0.93518859]
[1747876052080,0.59191841,110460.0,110450.0,0.70408118]
[1747876052287,0.39275139,110460.0,110450.0,0.71313447]
[1747876052501,0.39275131,110460.0,110450.0,0.71313447]
[1747876052702,0.40180419,110460.0,110450.0,0.71313447]
[1747876053303,0.39275139,110460.0,110450.0,0.38189396]
[1747876053517,0.75301214,110460.0,110450.0,0.38189396]
[1747876053728,1.09208026,110460.0,110450.0,0.6159204]
[1747876053937,1.10113281,110460.0,110450.0,0.49714308]
[1747876054156,0.09403357,110460.0,110450.0,0.67822049]
[1747876054359,0.37464596,110460.0,110450.0,0.7053811]
[1747876054571,0.38369851,110460.0,110450.0,0.7053811]
[1747876054977,0.39275115,110460.0,110450.0,0.7053811]
[1747876055181,0.37464596,110460.0,110450.0,0.70538118]
[1747876055391,0.38369851,110460.0,110450.0,0.71443447]
[1747876055591,0.10308596,110460.0,110450.0,0.71443447]
[1747876055797,0.38369851,110460.0,110450.0,0.71443447]
[1747876056231,0.39104,110470.0,110460.0,0.1352534]
[1747876056442,0.67165149,110470.0,110460.0,0.31631441]
[1747876057052,0.6626,110470.0,110460.0,0.31631441]
[1747876057256,0.73554329,110480.0,110460.0,0.31631441]
[1747876057257,8.004e-05,110480.0,110470.0,0.31419556]
[1747876057573,0.27164004,110480.0,110470.0,0.31419556]
[1747876057779,0.27164004,110480.0,110470.0,0.67626556]
[1747876057991,0.27164004,110480.0,110470.0,1.03833556]
[1747876058264,8.004e-05,110480.0,110470.0,1.03833556]
[1747876058432,0.27164004,110480.0,110470.0,1.03846056]
[1747876059019,0.27164004,110480.0,110470.0,1.68046873]
[1747876059020,8.004e-05,110480.0,110470.0,1.68046873]
[1747876059217,0.27160004,110480.0,110470.0,1.68046873]
[1747876060096,0.27160004,110480.0,110470.0,1.38846056]
[1747876060495,8.004e-05,110480.0,110470.0,1.68046873]
[1747876060724,0.27160004,110480.0,110470.0,1.68046873]
[1747876061690,0.27160004,110480.0,110470.0,1.38846056]
[1747876062175,0.27160004,110480.0,110470.0,0.724265]
[1747876062176,1.38407311,110480.0,110470.0,0.724265]
[1747876064573,1.09206494,110480.0,110470.0,0.724265]
[1747876064749,1.10287865,110480.0,110470.0,0.724265]
[1747876067329,1.39488682,110480.0,110470.0,0.724265]
[1747876067490,7.34505209,110480.0,110470.0,0.362195]
[1747876068105,7.33505209,110480.0,110470.0,0.362195]
[1747876068284,7.27196937,110480.0,110470.0,0.362195]
[1747876068848,7.26115566,110480.0,110470.0,0.362195]
[1747876068967,7.86115566,110480.0,110470.0,0.28273423]
[1747876069174,7.86115566,110480.0,110470.0,0.27454068]
[1747876069379,7.89170177,110480.0,110470.0,0.26729896]
[1747876069784,7.89170177,110480.0,110470.0,0.26005724]
[1747876070225,7.89270177,110480.0,110470.0,0.25281552]
[1747876070666,7.89270177,110480.0,110470.0,0.2455738]
[1747876070876,7.89270177,110480.0,110470.0,0.22435406]
[1747876071087,0.59990738,110460.0,110450.0,0.38189396]
[1747876071313,7.07764569,110460.0,110450.0,0.38193552]
[1747876071650,7.08764569,110460.0,110450.0,0.74407552]
[1747876071850,7.11296793,110460.0,110450.0,0.74407552]
[1747876072068,7.7049761,110460.0,110450.0,0.355798]
[1747876072279,7.37965386,110460.0,110450.0,0.30688485]
[1747876072501,7.40496771,110460.0,110450.0,0.30688485]
[1747876072704,7.41295954,110460.0,110450.0,0.30688485]
[1747876072903,7.36644569,110460.0,110450.0,0.26162406]
[1747876073106,7.10838923,110460.0,110450.0,0.21636327]
[1747876073310,7.89286923,110460.0,110450.0,0.12584169]
[1747876073598,7.89286923,110460.0,110450.0,0.0805809]
[1747876073798,7.89286923,110460.0,110450.0,0.03532011]
[1747876073941,7.89286923,110460.0,110410.0,0.07689525]
[1747876073942,0.19566745,110420.0,110410.0,0.07689525]
[1747876074150,0.80611459,110420.0,110410.0,0.10901163]
[1747876074359,1.06873633,110420.0,110410.0,0.10901163]
[1747876074559,0.51296,110420.0,110410.0,0.39040781]
[1747876074820,0.78452,110420.0,110410.0,0.75267781]
[1747876074997,0.79357567,110420.0,110410.0,0.75267781]
[1747876075216,0.20827721,110430.0,110420.0,0.29757818]
[1747876075546,1.06393593,110430.0,110420.0,0.47870149]
[1747876075725,1.06393593,110430.0,110420.0,0.46964525]
[1747876075955,1.05488083,110430.0,110420.0,0.47870158]
[1747876076161,1.05488083,110430.0,110420.0,0.65982818]
[1747876076334,1.06393593,110430.0,110420.0,0.66888442]
[1747876076534,1.06393593,110430.0,110420.0,0.47870158]
[1747876077007,1.06393593,110430.0,110420.0,0.48775782]
[1747876077215,0.30231144,110430.0,110420.0,0.6779405]
[1747876077426,1.07299144,110430.0,110420.0,0.6779405]
[1747876077846,1.07299144,110430.0,110420.0,0.6869965]
[1747876078079,1.07299144,110430.0,110420.0,0.6779405]
[1747876078285,1.06393593,110430.0,110420.0,0.6869965]
[1747876078489,1.07299144,110430.0,110420.0,0.6869965]
[1747876078903,0.29325593,110430.0,110420.0,0.66888442]
[1747876079118,1.06393625,110430.0,110420.0,0.46964525]
[1747876079320,1.11137386,110430.0,110420.0,0.48775765]
[1747876079555,0.49239017,110450.0,110440.0,0.10809525]
[1747876079556,0.18111337,110450.0,110440.0,0.10809525]
[1747876079736,0.282714,110460.0,110450.0,0.10809525]
[1747876080049,1.068331,110460.0,110450.0,0.10809525]
[1747876080250,1.068331,110460.0,110450.0,0.47024525]
[1747876080686,0.49912,110460.0,110450.0,0.67848327]
[1747876080891,0.6130995,110470.0,110460.0,0.30556194]
[1747876081096,0.70713307,110470.0,110460.0,0.29650922]
[1747876081310,1.45978968,110470.0,110460.0,0.47756821]
[1747876081506,1.53073794,110470.0,110460.0,0.6676821]
[1747876081676,1.53073794,110470.0,110460.0,0.6767349]
[1747876081845,0.5648219,110470.0,110460.0,0.6767349]
[1747876082044,0.5648219,110470.0,110460.0,0.68578762]
[1747876082246,0.38377728,110470.0,110460.0,0.69484009]
[1747876082489,0.38377728,110470.0,110460.0,0.69484017]
[1747876082689,0.57387404,110470.0,110460.0,0.68578762]
[1747876082890,0.57387404,110470.0,110460.0,0.69484026]
[1747876083123,0.58292627,110470.0,110460.0,0.68578762]
[1747876083302,0.58292627,110470.0,110460.0,0.6767349]
[1747876083627,0.57387404,110470.0,110460.0,0.68578754]
[1747876083833,0.57387404,110470.0,110460.0,0.6767349]
[1747876084044,0.57387404,110470.0,110460.0,0.4775683]
[1747876084248,0.57387404,110470.0,110460.0,0.46851525]
[1747876084249,0.56482231,110470.0,110460.0,0.46851525]
[1747876084476,0.64983346,110470.0,110460.0,0.48662126]
[1747876084694,0.64983346,110470.0,110460.0,0.46851525]
[1747876085124,0.56482231,110470.0,110460.0,0.46851525]
[1747876086322,0.57031118,110470.0,110460.0,0.42462]
[1747876086530,0.57031118,110470.0,110460.0,0.46851525]
[1747876086891,0.57031118,110470.0,110460.0,0.43831525]
[1747876087099,1.20231935,110470.0,110460.0,0.36212]
[1747876087278,1.36943564,110470.0,110460.0,0.36212]
[1747876087720,1.41563564,110470.0,110460.0,0.36212]
[1747876088121,1.44090622,110470.0,110460.0,0.36212]
[1747876088344,6.46563564,110470.0,110460.0,0.3244635]
[1747876088522,7.06563564,110470.0,110460.0,0.3166635]
[1747876088816,7.06563564,110470.0,110460.0,0.22613752]
[1747876089025,7.06563564,110470.0,110460.0,0.13561154]
[1747876089227,7.08004419,110470.0,110460.0,0.09034855]
[1747876089461,7.08004419,110470.0,110460.0,0.04508556]
[1747876089636,0.54465474,110460.0,110450.0,6.448e-05]
[1747876089893,6.43473616,110460.0,110450.0,6.448e-05]
[1747876090082,1.56579717,110460.0,110450.0,6.448e-05]
[1747876090378,1.58865027,110460.0,110450.0,6.448e-05]
[1747876090582,1.58865027,110460.0,110450.0,0.36220448]
[1747876091807,1.58865027,110460.0,110450.0,0.36213268]
[1747876091937,6.63865027,110460.0,110450.0,0.36213268]
[1747876092359,6.64943855,110460.0,110450.0,0.36213268]
[1747876092935,6.98943855,110460.0,110450.0,0.29596461]
[1747876093151,0.19925673,110410.0,110400.0,0.0608]
[1747876093355,0.19021722,110400.0,110390.0,0.13388272]
[1747876093569,0.28425079,110400.0,110390.0,0.13388272]
[1747876093781,0.28425079,110400.0,110390.0,0.17784244]
[1747876094005,0.29879164,110400.0,110390.0,0.42320447]
[1747876094217,0.99572632,110400.0,110390.0,0.36240447]
[1747876094432,1.14113187,110400.0,110390.0,0.36240447]
[1747876095081,0.8491237,110400.0,110390.0,0.36240447]
[1747876095285,1.14113187,110400.0,110390.0,0.36240447]
[1747876095498,0.69823502,110400.0,110390.0,0.47079972]
[1747876095742,0.71277587,110400.0,110390.0,0.42690447]
[1747876095947,1.46905587,110400.0,110390.0,0.47079972]
[1747876096155,1.46905587,110400.0,110390.0,0.40629972]
[1747876096356,1.85509761,110400.0,110390.0,0.40629972]
[1747876096591,1.46905587,110400.0,110390.0,0.46989972]
[1747876096832,1.47833487,110400.0,110390.0,0.46989972]
[1747876097709,1.47833487,110400.0,110390.0,0.42600447]
[1747876098138,1.47833487,110400.0,110390.0,0.46989972]
[1747876098361,1.57236844,110400.0,110390.0,0.46989972]
[1747876098564,1.86437661,110400.0,110390.0,0.36240447]
[1747876099047,1.57236844,110400.0,110390.0,0.36240447]
[1747876099261,1.86437661,110400.0,110390.0,0.36240447]
[1747876100700,1.57236844,110400.0,110390.0,0.36240447]
[1747876100928,1.86437661,110400.0,110390.0,0.36240447]
[1747876102590,2.20437661,110400.0,110390.0,0.36240447]
[1747876103009,0.81608844,110400.0,110390.0,0.36240447]
[1747876103212,1.57256844,110400.0,110390.0,0.39450447]
[1747876103626,1.86457661,110400.0,110390.0,0.36240447]
[1747876105210,7.25457661,110400.0,110390.0,0.36240447]
[1747876105404,7.84658478,110400.0,110390.0,0.36240447]
[1747876105623,7.69607418,110400.0,110390.0,0.36240447]
[1747876106667,7.70686246,110400.0,110390.0,0.36240447]
[1747876107111,1.38362959,110400.0,110390.0,0.36240447]
[1747876107328,2.04611602,110400.0,110390.0,0.36240447]
[1747876107995,2.03532774,110400.0,110390.0,0.36240447]